bitfinex-derivatives/quotes_ETHF0:USTF0_20251007
["timestamp","ask_amount","ask_price","bid_price","bid_amount"]
[1759804445467,0.3165,4689.9,4689.7,0.3092]
[1759804445671,1.12544,4689.5,4689.4,3.7316]
[1759804445870,1.12544,4689.5,4689.4,3.9456]
[1759804446762,0.8713,4689.5,4689.1,0.31090688]
[1759804446966,0.80896,4689.2,4689.1,0.52550688]
[1759804447167,1.12546,4689.2,4689.1,0.73950688]
[1759804447573,1.12546,4689.2,4689.1,0.52550688]
[1759804447761,1.12546,4689.2,4689.1,0.73950688]
[1759804447965,1.12546,4689.2,4689.1,0.21630688]
[1759804448170,1.12546,4689.2,4689.1,0.21570688]
[1759804449065,1.61397594,4689.2,4689.1,0.00170688]
[1759804449265,6.61397594,4689.2,4689.1,0.00170688]
[1759804450068,0.7418,4688.4,4688.3,3.7316]
[1759804450378,0.7418,4688.4,4688.3,3.9456]
[1759804450567,1.12553,4688.4,4688.3,3.9456]
[1759804451167,1.12553,4688.4,4688.3,3.94753843]
[1759804451976,0.7418,4688.4,4688.3,4.15963843]
[1759804452174,0.22,4688.4,4688.3,4.15963843]
[1759804452474,0.7418,4688.4,4688.3,4.15963843]
[1759804453172,0.7418,4688.4,4688.3,3.42373843]
[1759804453475,0.7418,4688.4,4688.3,0.00193843]
[1759804453880,5.7418,4688.4,4688.3,0.00193843]
[1759804461677,0.7418,4688.4,4688.3,0.00193843]
[1759804464072,0.9558,4688.4,4688.3,0.00193843]
[1759804468982,1.33953,4688.4,4688.3,0.00193843]
[1759804471383,1.61252884,4688.4,4688.3,0.00193843]
[1759804471684,1.33953,4688.4,4688.3,0.54193843]
[1759804472975,1.33953,4688.4,4688.3,0.00193843]
[1759804473179,1.82693028,4688.4,4688.3,0.00193843]
[1759804473374,0.38381,4687.4,4687.3,0.3269]
[1759804473577,0.7535,4686.9,4686.5,0.3269]
[1759804473881,0.7535,4686.9,4686.5,0.54]
[1759804473882,1.13738,4686.6,4686.5,0.54]
[1759804474584,1.13987503,4686.6,4686.5,0.5421082]
[1759804475582,1.13987503,4686.6,4686.5,0.7510082]
[1759804475782,1.13987503,4686.6,4686.5,0.8720082]
[1759804476079,0.81297503,4686.6,4686.5,0.8720082]
[1759804476282,0.81297503,4686.6,4686.5,0.0021082]
[1759804476283,1.13987503,4686.6,4686.5,0.0021082]
[1759804477086,1.13987503,4686.6,4686.5,0.5055082]
[1759804478085,1.62770984,4686.6,4686.5,0.7180082]
[1759804478478,1.62770984,4686.6,4686.5,0.8439082]
[1759804478783,1.13987503,4686.6,4686.5,0.7180082]
[1759804479184,1.6276873,4686.6,4686.5,0.7180082]
[1759804479387,1.13987503,4686.6,4686.5,0.7180082]
[1759804482483,0.59837503,4686.6,4686.5,0.8439082]
[1759804483288,1.62981377,4686.6,4686.5,0.8439082]
[1759804483482,1.14187503,4686.6,4686.5,0.8439082]
[1759804483682,1.62775012,4686.6,4686.5,0.8439082]
[1759804484188,1.14187503,4686.6,4686.5,0.8439082]
[1759804484589,1.14187503,4686.6,4686.5,0.7180082]
[1759804486191,1.14187503,4686.6,4686.5,0.8439082]
[1759804487787,1.14187503,4686.6,4686.5,0.7180082]
[1759804494502,0.59837503,4686.6,4686.5,0.8444082]
[1759804494693,0.38637503,4686.6,4686.5,0.8444082]
[1759804495001,0.59417503,4686.6,4686.5,0.8444082]
[1759804495293,0.89607503,4686.6,4686.5,0.8444082]
[1759804495704,1.11437503,4686.6,4686.5,0.8444082]
[1759804496807,1.11437503,4686.6,4686.5,0.7180082]
[1759804498796,1.11437503,4686.6,4686.5,0.8444082]
[1759804500307,1.11437503,4686.6,4686.5,0.0021082]
[1759804500602,1.11437503,4686.6,4686.2,3.5369]
[1759804500603,1.11196,4685.6,4685.5,0.5467]
[1759804500802,1.11196,4685.6,4685.5,0.2176]
[1759804501106,0.89372,4684.8,4684.7,3.8583]
[1759804501309,1.11202,4684.8,4684.7,3.8583]
[1759804501701,1.11202,4684.8,4684.7,4.18977629]
[1759804502504,1.11202,4684.8,4684.7,3.97577629]
[1759804504206,1.11202,4684.8,4684.7,0.00237629]
[1759804504803,1.32602,4684.8,4684.7,0.00237629]
[1759804505002,1.81203233,4684.8,4684.7,0.00237629]
[1759804505203,1.32602,4684.8,4684.7,0.00237629]
[1759804505406,0.942,4684.8,4684.0,0.3291]
[1759804505614,1.11211,4683.8,4683.7,3.2078]
[1759804506512,1.11211,4683.8,4683.7,0.00151385]
[1759804506702,1.11217,4683.0,4682.9,0.56805452]
[1759804506905,1.11217,4683.0,4682.9,0.78695452]
[1759804507509,1.23357,4683.0,4682.9,0.78695452]
[1759804507708,1.23553447,4683.0,4682.9,0.7891898]
[1759804508014,0.72996447,4683.0,4682.9,0.7891898]
[1759804508613,0.20976447,4683.0,4682.9,0.7891898]
[1759804509903,0.72996447,4683.0,4682.9,0.7891898]
[1759804511712,0.85136447,4683.0,4682.9,0.0235898]
[1759804513206,0.85136447,4683.0,4682.9,0.5702898]
[1759804513912,0.85136447,4683.0,4682.9,0.7891898]
[1759804513913,0.72996447,4683.0,4682.9,0.7891898]
[1759804514511,0.42806447,4683.0,4682.9,0.7891898]
[1759804515009,0.72996447,4683.0,4682.9,0.7891898]
[1759804517512,0.85136447,4683.0,4682.9,0.0235898]
[1759804519719,0.94736447,4683.0,4682.9,0.5524898]
[1759804520317,1.07096447,4683.0,4682.9,0.0235898]
[1759804526027,0.85696447,4683.0,4682.9,0.0235898]
[1759804526226,1.07096447,4683.0,4682.9,0.0235898]
[1759804527720,1.07096447,4683.0,4682.9,0.5524898]
[1759804529122,1.55706352,4683.0,4682.9,0.5524898]
[1759804529522,1.55706352,4683.0,4682.9,0.0235898]
[1759804530223,1.55709492,4683.0,4682.9,0.0235898]
[1759804530427,1.55709492,4683.0,4682.9,0.5524898]
[1759804531129,1.55709492,4683.0,4682.9,0.2396898]
[1759804531325,1.55709492,4683.0,4682.9,0.5524898]
[1759804531923,1.55709492,4683.0,4682.9,0.0235898]
[1759804534129,1.94126492,4683.0,4682.9,0.0235898]
[1759804534922,1.94126492,4683.0,4682.9,0.3363898]
[1759804535230,1.94126492,4683.0,4682.9,0.5524898]
[1759804535629,1.94126492,4683.0,4682.9,0.0235898]
[1759804538037,1.94126492,4683.0,4682.9,0.2396898]
[1759804538231,1.72726492,4683.0,4682.9,0.5389898]
[1759804538429,1.94126492,4683.0,4682.9,0.5389898]
[1759804538829,1.81766492,4683.0,4682.9,0.7561898]
[1759804539638,1.94716492,4683.0,4682.9,0.2396898]
[1759804539937,1.73316492,4683.0,4682.9,0.0235898]
[1759804540437,1.94716492,4683.0,4682.9,0.0235898]
[1759804540831,1.94716492,4683.0,4682.9,0.3228898]
[1759804541238,1.94716492,4683.0,4682.9,0.5381898]
[1759804542839,1.73316492,4683.0,4682.9,0.5381898]
[1759804543040,1.94716492,4683.0,4682.9,0.5381898]
[1759804543941,1.73316492,4683.0,4682.9,0.5381898]
[1759804544148,1.81766492,4683.0,4682.9,0.7553898]
[1759804545339,1.94716492,4683.0,4682.9,0.5381898]
[1759804545642,1.73316492,4683.0,4682.9,0.5381898]
[1759804545942,1.94716492,4683.0,4682.9,0.5381898]
[1759804547744,1.81766492,4683.0,4682.9,0.7553898]
[1759804548444,1.94076492,4683.0,4682.9,0.7553898]
[1759804549344,1.94076492,4683.0,4682.9,0.5381898]
[1759804550433,1.21949492,4683.0,4682.9,0.7457898]
[1759804554041,1.34259492,4683.0,4682.9,0.0235898]
[1759804554945,1.72676492,4683.0,4682.9,0.0235898]
[1759804555944,1.72753955,4683.0,4682.9,0.0235898]
[1759804557243,1.72753955,4683.0,4682.9,0.5445898]
[1759804557547,1.72753955,4683.0,4682.9,0.0235898]
[1759804567552,1.72753955,4683.0,4682.9,0.5445898]
[1759804567950,1.72753955,4683.0,4682.9,0.2252898]
[1759804568248,1.72753955,4683.0,4682.9,0.0235898]
[1759804569752,1.60443955,4683.0,4682.9,0.7521898]
[1759804573353,1.22026955,4683.0,4682.9,0.7521898]
[1759804573557,0.48886955,4683.0,4682.9,5.7521898]
[1759804573753,0.00196447,4683.0,4682.9,5.7521898]
[1759804573959,0.86466447,4683.0,4682.9,40.8235898]
[1759804574252,0.86466447,4683.0,4681.7,3.9364]
[1759804574253,0.59067,4681.8,4681.7,3.9364]
[1759804574559,0.90637,4681.8,4681.7,3.9364]
[1759804574760,0.2064,4681.8,4681.7,3.9364]
[1759804575353,0.2064,4681.8,4681.7,3.93838387]
[1759804577161,0.5221,4681.8,4681.7,3.93838387]
[1759804577460,0.2064,4681.8,4681.7,3.93838387]
[1759804579766,0.38426,4681.9,4681.7,3.61908387]
[1759804580060,3.2078,4682.5,4682.0,0.1263]
[1759804580266,1.11382,4682.4,4682.3,0.7393]
[1759804580466,1.6013729,4682.4,4682.3,0.209]
[1759804580967,1.6013729,4682.4,4682.3,0.7393]
[1759804581367,1.6013729,4682.4,4682.3,0.5361]
[1759804582968,1.6013729,4682.4,4682.3,0.209]
[1759804583269,1.6013729,4682.4,4682.3,0.5361]
[1759804584163,1.6013729,4682.4,4682.3,0.7393]
[1759804584965,1.11385,4682.1,4682.0,0.5361]
[1759804588771,0.81107,4681.8,4681.7,4.16308387]
[1759804589072,1.11387,4681.8,4681.7,4.16308387]
[1759804592471,0.59257,4681.8,4681.7,4.16308387]
[1759804593171,0.2083,4681.8,4681.7,4.16308387]
[1759804593377,0.89535,4682.1,4682.0,0.8656]
[1759804593568,0.59255,4682.1,4682.0,0.8656]
[1759804593768,0.38425,4682.2,4682.1,0.3271]
[1759804593972,0.59255,4682.2,4682.1,0.7393]
[1759804594171,0.89535,4682.2,4682.1,0.7393]
[1759804594368,1.11385,4682.2,4682.1,0.7393]
[1759804594572,0.38425,4682.2,4682.1,0.7393]
[1759804595580,0.59255,4682.2,4682.1,0.7393]
[1759804595878,0.89535,4682.2,4682.1,0.7393]
[1759804596685,0.79807,4681.8,4681.7,3.94788387]
[1759804596875,0.79807,4681.8,4681.7,4.16188387]
[1759804596876,1.12117,4681.8,4681.7,4.16188387]
[1759804597976,0.7369,4681.8,4681.7,4.16188387]
[1759804598174,0.91465,4682.1,4682.0,0.5424]
[1759804598379,1.12115,4682.1,4682.0,0.8646]
[1759804601282,0.38425,4682.1,4682.0,0.8646]
[1759804603784,0.59155,4682.1,4682.0,0.8646]
[1759804605186,0.91465,4682.1,4682.0,0.8646]
[1759804606080,1.12115,4682.1,4682.0,0.7381]
[1759804606278,1.12117,4681.8,4681.7,0.00198387]
[1759804606484,1.609418,4681.8,4681.7,0.00198387]
[1759804606685,6.609418,4681.8,4681.7,0.00198387]
[1759804607181,9.817218,4681.8,4681.7,0.00198387]
[1759804607484,1.12125,4680.8,4680.7,3.2078]
[1759804607884,1.6146515,4680.8,4680.7,3.2078]
[1759804608386,1.12125,4680.8,4680.7,3.2104891]
[1759804608576,1.12125,4680.8,4680.7,0.0026891]
[1759804608977,1.61424892,4680.8,4680.7,0.0026891]
[1759804609383,4.41278409,4680.8,4680.7,0.0026891]
[1759804609687,4.58131309,4680.8,4680.7,0.0026891]
[1759804611390,9.58131309,4680.8,4680.7,0.0026891]
[1759804613292,9.08831417,4680.8,4680.7,0.0026891]
[1759804619489,9.30231417,4680.8,4680.7,0.0026891]
[1759804622793,9.08831417,4680.8,4680.7,0.0026891]
[1759804622997,9.30231417,4680.8,4680.7,0.0026891]
[1759804623303,3.91978517,4680.8,4680.7,0.5283891]
[1759804623600,1.33525,4680.8,4680.7,0.7353891]
[1759804628401,1.33525,4680.8,4680.7,0.0026891]
[1759804631098,7.79812123,4680.8,4680.7,0.0026891]
[1759804631392,0.38449,4679.2,4679.0,0.3059]
[1759804631590,0.3112,4679.5,4679.0,0.547]
[1759804631800,0.214,4679.5,4679.4,0.7327]
[1759804632096,0.7344,4679.8,4679.7,0.7327]
[1759804632402,0.00233571,4679.8,4679.7,0.73541142]
[1759804632603,0.00233571,4679.8,4679.7,5.73541142]
[1759804633399,0.73583571,4679.8,4679.7,0.73541142]
[1759804634099,0.21153571,4679.8,4679.7,0.73541142]
[1759804635402,0.00233571,4679.8,4679.7,0.73541142]
[1759804636810,0.00233571,4679.8,4679.7,8.94321142]
[1759804636997,0.5204,4681.0,4680.9,0.7327]
[1759804637202,0.2092,4681.2,4681.1,0.7327]
[1759804637496,0.70484951,4681.2,4681.1,0.7327]
[1759804637696,0.49564951,4681.2,4681.1,0.7327]
[1759804637897,0.38428,4681.8,4681.7,0.3059]
[1759804638101,0.59529213,4681.8,4681.7,0.7327]
[1759804638306,1.09087693,4681.8,4681.7,0.7327]
[1759804638505,1.63207693,4681.8,4681.7,0.7327]
[1759804639198,0.38432,4681.3,4681.1,3.2078]
[1759804639405,0.81962,4681.3,4681.2,0.2097]
[1759804639606,0.4353,4681.3,4681.2,0.4165]
[1759804639906,0.2141,4681.3,4681.2,0.7372]
[1759804640210,0.9184,4681.5,4681.4,0.7372]
[1759804640410,1.1396,4681.5,4681.4,0.7372]
[1759804643912,1.2611,4681.5,4681.4,0.7372]
[1759804644112,1.2611,4681.5,4681.4,0.5304]
[1759804649411,1.1396,4681.5,4681.4,0.7372]
[1759804659124,0.3843,4681.5,4681.4,0.7372]
[1759804659325,1.1172,4681.5,4681.4,0.3207]
[1759804659525,1.11723,4681.1,4681.0,0.8674]
[1759804659923,0.59893,4681.1,4681.0,0.8674]
[1759804662328,0.91233,4681.1,4681.0,0.8674]
[1759804662626,1.11723,4681.1,4681.0,0.7421]
[1759804662929,1.24588,4680.5,4680.3,3.2078]
[1759804663124,0.7329,4680.4,4680.3,3.7352]
[1759804663329,0.7329,4679.9,4679.8,3.6295]
[1759804663627,1.11733,4679.9,4679.8,3.8435]
[1759804663828,1.11733,4679.9,4679.8,4.1639]
[1759804664128,1.11733,4679.9,4679.8,3.9499]
[1759804664328,1.11733,4679.9,4679.8,4.1639]
[1759804666128,1.11733,4679.9,4679.8,0.9561]
[1759804667937,0.80393,4679.9,4679.8,0.9561]
[1759804668142,0.59903,4679.9,4679.8,0.9561]
[1759804670535,0.91873,4679.9,4679.8,0.9561]
[1759804672932,0.38443,4679.9,4679.8,0.9561]
[1759804673333,0.58593,4679.9,4679.8,0.9561]
[1759804673734,0.90563,4679.9,4679.8,0.9561]
[1759804676638,0.58593,4679.9,4679.8,0.9561]
[1759804677837,0.3844,4680.3,4680.2,1.1187]
[1759804678038,0.3844,4680.3,4680.2,0.9483]
[1759804678337,1.1223,4680.3,4680.2,0.7343]
[1759804681333,1.1223,4680.3,4680.1,0.214]
[1759804681334,0.58593,4679.8,4679.7,0.42731142]
[1759804681632,0.38443,4679.8,4679.7,0.42731142]
[1759804681837,0.38442,4680.0,4679.8,0.3097]
[1759804682032,0.38441,4680.2,4680.1,0.7343]
[1759804682838,0.3844,4680.3,4680.1,0.80901]
[1759804683033,0.9056,4680.3,4680.2,0.7343]
[1759804685035,0.214,4680.8,4680.2,0.4246]
[1759804685233,0.2015,4680.4,4680.3,0.7343]
[1759804685432,0.5212,4680.4,4680.3,0.7343]
[1759804686231,1.12229,4680.4,4680.3,0.7343]
[1759804688030,0.7379,4680.4,4680.3,0.7343]
[1759804688431,0.7379,4680.4,4680.3,0.5296]
[1759804688632,0.8617,4680.0,4679.9,3.2078]
[1759804690733,0.4182,4679.8,4679.7,0.00271142]
[1759804690939,0.7379,4679.8,4679.7,0.00271142]
[1759804691140,0.7379,4679.8,4679.7,0.31241142]
[1759804691340,1.23580368,4679.8,4679.7,0.53231142]
[1759804692343,1.23580368,4679.8,4679.7,0.22261142]
[1759804692534,1.23580368,4679.8,4679.7,0.00271142]
[1759804692943,1.23580368,4679.8,4679.7,0.53231142]
[1759804693235,1.23580368,4679.8,4679.7,0.73701142]
[1759804695041,1.23580368,4679.8,4679.7,0.00271142]
[1759804696339,1.23580368,4679.8,4678.9,3.2078]
[1759804696340,1.23580368,4679.8,4678.9,3.5175]
[1759804696541,0.38453,4678.6,4678.5,0.3097]
[1759804696743,0.80273,4678.6,4678.5,0.3097]
[1759804697043,1.12243,4678.6,4678.5,0.3097]
[1759804697442,1.12243,4678.6,4678.5,0.53165545]
[1759804697641,1.12243,4678.6,4678.5,0.73635545]
[1759804700737,0.7379,4678.6,4678.5,0.85935545]
[1759804701847,0.7379,4678.6,4678.5,0.73635545]
[1759804702145,0.7379,4678.6,4678.5,0.53165545]
[1759804702345,0.7379,4678.6,4678.5,0.22195545]
[1759804702544,0.7379,4678.6,4678.5,0.00205545]
[1759804709950,1.12243,4678.6,4678.5,0.00205545]
[1759804710252,1.12243,4678.6,4678.5,0.31695545]
[1759804710755,1.12243,4678.6,4678.5,0.51655545]
[1759804711355,1.12243,4678.6,4678.5,0.20165545]
[1759804711755,1.12243,4678.6,4678.5,0.51655545]
[1759804713252,1.12243,4678.6,4678.5,0.72665545]
[1759804718455,1.12243,4678.6,4678.5,0.51655545]
[1759804718660,1.12243,4678.6,4678.5,0.00205545]
[1759804719063,1.12243,4678.6,4678.5,0.52305545]
[1759804720574,0.7379,4678.6,4678.5,0.52305545]
[1759804720871,0.7379,4678.6,4678.5,0.86605545]
[1759804721068,0.2015,4678.6,4678.5,0.86605545]
[1759804721271,0.7296,4678.6,4678.5,0.73545545]
[1759804721468,0.7296,4678.6,4678.5,0.00205545]
[1759804721868,0.7296,4678.6,4678.5,0.21605545]
[1759804722069,0.7296,4678.6,4678.5,0.73705545]
[1759804722375,0.90882,4678.8,4678.7,0.427]
[1759804722562,1.40660023,4678.8,4678.7,0.7334]
[1759804722764,0.3171,4679.2,4678.8,0.38452]
[1759804722967,0.5243,4679.2,4679.1,0.7334]
[1759804723173,1.40651888,4679.2,4679.1,0.7334]
[1759804723471,1.40651888,4679.2,4679.1,0.9474]
[1759804724370,0.70493888,4679.2,4679.1,0.9474]
[1759804724569,0.2072,4679.2,4679.1,0.9474]
[1759804724769,0.5243,4679.2,4679.1,0.9474]
[1759804726869,0.2072,4679.2,4679.1,0.9474]
[1759804727573,0.5243,4679.2,4679.1,0.9474]
[1759804727774,0.7353,4679.2,4679.1,0.735]
[1759804728071,1.11981,4678.9,4678.5,0.13265545]
[1759804728272,1.10413,4678.6,4678.5,0.00205545]
[1759804731077,1.10413,4678.6,4678.5,0.54405545]
[1759804732378,1.10413,4678.6,4678.5,0.74575545]
[1759804732677,1.10413,4678.6,4678.5,0.86645545]
[1759804733380,1.10413,4678.6,4678.5,0.74575545]
[1759804734175,1.10413,4678.6,4678.5,0.54405545]
[1759804734375,1.10413,4678.6,4678.5,0.00205545]
[1759804734580,1.10413,4678.6,4678.5,0.54405545]
[1759804734881,1.10413,4678.6,4678.5,0.74575545]
[1759804735677,0.7196,4678.6,4678.5,1.08045545]
[1759804735881,3.2078,4679.4,4679.2,0.7437]
[1759804735882,0.2039,4679.3,4679.2,0.7437]
[1759804736081,0.70554583,4679.3,4679.2,0.7437]
[1759804736384,1.01584583,4679.3,4679.2,0.7437]
[1759804737885,0.50164583,4679.3,4679.2,0.7437]
[1759804738478,3.2078,4679.4,4679.2,0.7437]
[1759804738479,0.69477,4679.4,4679.2,0.80208]
[1759804738785,0.89867,4679.4,4679.3,0.7437]
[1759804739085,1.40018178,4679.4,4679.3,0.7437]
[1759804739988,0.5142,4679.4,4679.3,0.7437]
[1759804740582,0.7196,4679.4,4679.3,0.7437]
[1759804744583,0.2039,4678.9,4678.8,0.3261]
[1759804744788,1.10413,4678.6,4678.5,1.13029545]
[1759804744990,1.10413,4678.6,4678.5,0.95975545]
[1759804746689,0.7196,4678.6,4678.5,1.08045545]
[1759804747992,0.7196,4678.6,4678.5,0.74575545]
[1759804748182,0.7196,4678.6,4678.5,0.00205545]
[1759804750188,1.22119538,4678.6,4678.5,0.00205545]
[1759804751693,6.22119538,4678.6,4678.5,0.00205545]
[1759804751890,1.22978,4678.0,4677.9,0.02137734]
[1759804752794,1.23130165,4678.0,4677.9,0.02407501]
[1759804753096,1.39845532,4678.0,4677.9,0.02407501]
[1759804753282,1.23130165,4678.0,4677.9,0.02407501]
[1759804753488,1.73249157,4678.0,4677.9,0.02407501]
[1759804754898,1.23130165,4678.0,4677.9,0.02407501]
[1759804755090,1.73235141,4678.0,4677.9,0.02407501]
[1759804755292,1.23130165,4678.0,4677.9,0.02407501]
[1759804760299,0.72112165,4678.0,4677.9,0.76417501]
[1759804761095,0.20542165,4678.0,4677.9,0.76417501]
[1759804761290,0.50932165,4678.0,4677.9,0.76417501]
[1759804761488,0.72602165,4678.0,4677.9,0.76417501]
[1759804763192,0.20542165,4678.0,4677.9,0.76417501]
[1759804763401,0.00152165,4678.0,4677.9,0.76417501]
[1759804764399,0.00152165,4678.0,4677.9,4.18597501]
[1759804767699,0.00152165,4678.0,4677.9,3.97197501]
[1759804767700,0.73252165,4678.0,4677.9,3.97197501]
[1759804767902,0.73252165,4678.0,4677.9,0.76417501]
[1759804768095,0.73252165,4678.0,4677.9,0.55337501]
[1759804768403,0.73252165,4678.0,4677.9,0.76417501]
[1759804771708,0.21192165,4678.0,4677.9,0.76417501]
[1759804772208,0.21192165,4678.0,4677.9,3.97197501]
[1759804772402,0.51582165,4678.0,4677.9,3.97197501]
[1759804772907,0.21192165,4678.0,4677.9,3.97197501]
[1759804773610,0.00152165,4678.0,4677.9,3.97197501]
[1759804776908,0.38610165,4678.0,4677.9,3.97197501]
[1759804777105,0.38610165,4678.0,4677.9,4.35656501]
[1759804778705,0.38610165,4678.0,4677.9,4.57056501]
[1759804780102,1.11400165,4678.0,4677.9,4.18597501]
[1759804780308,1.24570165,4678.0,4677.9,4.18597501]
[1759804780711,1.11400165,4678.0,4677.9,4.18597501]
[1759804781212,1.11400165,4678.0,4677.9,3.97197501]
[1759804781416,1.11400165,4678.0,4677.9,4.18597501]
[1759804781609,0.59650165,4678.0,4677.9,4.18597501]
[1759804782114,0.59650165,4678.0,4677.9,4.57056501]
[1759804782309,0.59650165,4678.0,4677.9,4.18597501]
[1759804783111,1.74758031,4678.0,4677.9,0.02407501]
[1759804783306,6.74758031,4678.0,4677.9,0.02407501]
[1759804785013,6.74758031,4678.0,4677.9,0.55677501]
[1759804785310,1.22550031,4678.0,4677.9,0.76077501]
[1759804785514,1.35720031,4678.0,4677.9,0.02407501]
[1759804785812,4.56500031,4678.0,4677.9,0.02407501]
[1759804786009,9.56500031,4678.0,4677.9,0.02407501]
[1759804788817,9.77900031,4678.0,4677.9,0.02407501]
[1759804789015,4.77900031,4678.0,4677.9,0.53637501]
[1759804790212,4.77900031,4678.0,4677.9,0.22437501]
[1759804790716,4.77900031,4678.0,4677.9,0.02407501]
[1759804796018,5.16358031,4678.0,4677.9,0.02407501]
[1759804806429,1.61878031,4678.0,4677.9,0.74507501]
[1759804806726,1.95678031,4678.0,4677.9,0.02407501]
[1759804812134,1.95678031,4678.0,4677.9,0.53637501]
[1759804813835,1.74278031,4678.0,4677.9,0.53637501]
[1759804814036,1.95678031,4678.0,4677.9,0.53637501]
[1759804815131,1.61878031,4678.0,4677.9,0.74507501]
[1759804815433,1.83278031,4678.0,4677.9,0.74507501]
[1759804817432,1.10198031,4678.0,4677.9,0.74507501]
[1759804817632,1.63008031,4678.0,4677.9,0.74507501]
[1759804817932,1.83278031,4678.0,4677.9,0.74507501]
[1759804820241,1.61878031,4678.0,4677.9,0.74507501]
[1759804821636,1.20678031,4678.0,4677.9,0.74507501]
[1759804821844,0.88798031,4678.0,4677.9,0.74507501]
[1759804822233,0.50340031,4678.0,4677.9,8.95287501]
[1759804822437,3.2078,4678.6,4678.3,0.4214]
[1759804822741,0.89144,4678.6,4678.5,0.8693]
[1759804823141,1.11204,4678.6,4678.5,0.8693]
[1759804823439,1.11434364,4678.6,4678.5,0.8693]
[1759804827547,0.00230364,4678.6,4678.5,0.8693]
[1759804828649,0.72980364,4678.6,4678.5,0.8693]
[1759804828946,0.72980364,4678.6,4678.5,0.7384]
[1759804829544,0.72980364,4678.6,4678.5,0.5177]
[1759804830350,0.72980364,4678.6,4678.5,0.7384]
[1759804833046,0.72980364,4678.6,4678.5,0.8693]
[1759804833251,0.72980364,4678.6,4678.5,1.25384]
[1759804833551,0.00230364,4678.6,4678.5,1.25384]
[1759804833753,0.38683364,4678.6,4678.5,1.25384]
[1759804834248,0.00230364,4678.6,4678.5,1.25384]
[1759804834545,0.20500364,4678.6,4678.5,1.25384]
[1759804834852,0.50920364,4678.6,4678.5,1.25384]
[1759804835048,0.2027,4678.9,4678.8,0.38452]
[1759804835346,0.3845,4679.0,4678.9,0.7384]
[1759804835546,1.112,4679.0,4678.9,3.9462]
[1759804835752,1.112,4679.0,4678.9,0.7384]
[1759804836051,1.11416733,4679.0,4678.9,0.7384]
[1759804840953,0.00216733,4679.0,4678.9,0.7384]
[1759804841350,0.52086733,4679.0,4678.9,0.7384]
[1759804841653,0.73356733,4679.0,4678.9,0.7384]
[1759804846751,0.00216733,4679.0,4678.9,0.7384]
[1759804846947,0.00216733,4679.0,4678.9,3.9462]
[1759804847556,0.38666733,4679.0,4678.9,3.9462]
[1759804848357,0.00216733,4679.0,4678.9,4.33071]
[1759804848656,0.00216733,4679.0,4678.9,3.9462]
[1759804848657,1.13106733,4679.0,4678.9,3.9462]
[1759804849159,1.13106733,4679.0,4678.9,4.33071]
[1759804850255,0.80656733,4679.0,4678.9,4.54471]
[1759804850760,0.38666733,4679.0,4678.9,4.54471]
[1759804851549,0.89271058,4679.0,4678.9,4.54471]
[1759804852555,0.50821058,4679.0,4678.9,4.54471]
[1759804852755,0.00216733,4679.0,4678.9,4.54471]
[1759804859453,0.00216733,4679.0,4678.9,3.9462]
[1759804859454,0.74656733,4679.0,4678.9,3.9462]
[1759804859759,1.25265598,4679.0,4678.9,4.1602]
[1759804860155,0.74656733,4679.0,4678.9,4.1602]
[1759804861059,1.25268977,4679.0,4678.9,4.1602]
[1759804861357,0.58874,4678.5,4678.4,3.7269]
[1759804861658,1.75765441,4678.5,4678.4,3.7258]
[1759804861849,1.75765441,4678.5,4678.4,3.2078]
[1759804862052,0.7444,4678.0,4677.9,0.54317501]
[1759804862252,0.7444,4678.0,4677.9,0.75717501]
[1759804862452,0.7444,4678.0,4677.9,0.95957501]
[1759804862859,1.12898,4678.0,4677.9,0.95957501]
[1759804865064,0.80448,4678.0,4677.9,0.95957501]
[1759804865359,1.12898,4678.0,4677.9,0.95957501]
[1759804865859,1.25148,4678.0,4677.9,0.02407501]
[1759804866164,1.75731036,4678.0,4677.9,0.02407501]
[1759804866859,1.93096346,4678.0,4677.9,0.02407501]
[1759804872870,0.80456,4677.1,4677.0,0.8432]
[1759804873070,1.12906,4677.1,4677.0,0.9362]
[1759804873863,0.3245,4677.4,4677.0,0.93864426]
[1759804874170,1.12903,4677.4,4677.3,0.7215]
[1759804889293,0.58883,4677.4,4677.3,0.7215]
[1759804889788,0.91243,4677.4,4677.3,0.7215]
[1759804890483,1.11863,4677.4,4677.3,0.7215]
[1759804891178,1.62444605,4677.4,4677.3,0.9355]
[1759804892582,0.50581605,4677.4,4677.3,4.1433]
[1759804892783,1.03491605,4677.4,4677.3,4.1433]
[1759804892984,1.41954605,4677.4,4677.3,4.52794]
[1759804894489,0.89044605,4677.4,4677.3,4.52794]
[1759804894690,0.50581605,4677.4,4677.3,4.52794]
[1759804897594,1.02461605,4677.4,4677.3,4.52794]
[1759804897800,1.62304605,4677.4,4677.3,0.9355]
[1759804898192,1.62304605,4677.4,4677.3,0.7215]
[1759804898393,1.62304605,4677.4,4677.3,0.9355]
[1759804899597,0.89044605,4677.4,4677.3,0.9355]
[1759804899797,1.62974605,4677.4,4677.3,0.9355]
[1759804901197,1.12393,4677.4,4677.3,0.9355]
[1759804901399,1.63036029,4677.4,4677.3,0.9355]
[1759804904104,1.63036029,4677.4,4677.3,0.5191]
[1759804904306,1.63036029,4677.4,4677.3,0.7331]
[1759804907707,1.63036029,4677.4,4677.3,0.518]
[1759804907902,1.12396,4677.1,4677.0,0.72684426]
[1759804908106,1.63039029,4677.1,4677.0,0.72684426]
[1759804916013,1.63039029,4677.1,4677.0,0.94074426]
[1759804925318,1.63039029,4677.1,4677.0,1.07224426]
[1759804925911,1.63039029,4677.1,4677.0,0.94074426]
[1759804926116,1.63039029,4677.1,4677.0,0.72684426]
[1759804926319,1.63039029,4677.1,4677.0,0.94074426]
[1759804926521,1.63039029,4677.1,4677.0,1.07224426]
[1759804929318,1.63039029,4677.1,4677.0,0.94074426]
[1759804934026,1.63039029,4677.1,4677.0,1.07224426]
[1759804935327,1.63039029,4677.1,4677.0,0.94074426]
[1759804943137,0.89109029,4677.1,4677.0,1.06434426]
[1759804943437,0.50643029,4677.1,4677.0,6.44901426]
[1759804943630,0.38464,4677.3,4677.2,0.7424]
[1759804943830,0.891025,4677.3,4677.2,0.9564]
[1759804944030,1.099325,4677.3,4677.2,0.9564]
[1759804944336,0.891025,4677.3,4677.2,0.9564]
[1759804945039,0.88862483,4677.3,4677.2,0.9564]
[1759804945838,0.38463,4677.4,4677.3,1.12704]